[Event "US Masters 2024"]
[Site "Charlotte"]
[Date "2024.11.28"]
[Round "1.1"]
[White "Amburgy, Ryan"]
[Black "Caruana, Fabiano"]
[Result "0-1"]
[ECO "E18"]
[WhiteElo "2234"]
[BlackElo "2805"]
[Annotator "RC"]
[PlyCount "100"]
[EventDate "2024.09.23"]
[EventType "swiss"]
[EventCountry "USA"]
[SourceTitle "playchess.com"]
[Source "ChessBase"]
[SourceQuality "1"]
[TimeControl "5400+30"]

1. d4 {[%emt 0:00:03]} Nf6 {[%emt 0:00:06]} 2. c4 {[%emt 0:00:05]} e6 {[%emt 0:00:04]} 3. Nf3 {[%emt 0:00:08]} b6 {[%emt 0:00:49]} 4. g3 {[%emt 0:00:16]} Bb7 {[%emt 0:00:07]} 5. Bg2 {[%emt 0:00:09]} Be7 {[%emt 0:00:17]} 6. O-O {[%emt 0:00:15]} O-O {[%emt 0:00:05]} 7. Nc3 {[%emt 0:00:11]} Ne4 {[%emt 0:00:06]} 8. Bd2 {[%emt 0:00:14]} Nxd2 {[%emt 0:00:17]} 9. Qxd2 {[%emt 0:00:07]} d6 {[%emt 0:00:13]} 10. d5 {[%emt 0:02:10]} e5 {[%emt 0:07:32]} 11. Qc2 {[%emt 0:03:26]} Nd7 {[%emt 0:02:06]} 12. Nd2 {[%emt 0:03:04]} f5 {[%emt 0:06:38]} 13. f4 {[%emt 0:04:59]} e4 {[%emt 0:08:45]} 14. g4 {[%emt 0:00:54]} g6 {[%emt 0:12:21]} 15. g5 {[%emt 0:03:22]} h6 {[%emt 0:00:10]} 16. h4 {[%emt 0:01:00]} hxg5 {[%emt 0:00:09]} 17. hxg5 {[%emt 0:00:03]} Bxg5 {[%emt 0:03:04]} 18. fxg5 {[%emt 0:01:07]} Qxg5 {[%emt 0:00:04]} 19. Ndxe4 {[%emt 0:06:48]} fxe4 {[%emt 0:00:06]} 20. Qxe4 {[%emt 0:00:12]} Ne5 {[%emt 0:08:25]} 21. Nb5 {[%emt 0:07:20]} Qe7 {[%emt 0:00:46]} 22. Nd4 {[%emt 0:05:01]} Rae8 {[%emt 0:00:52]} 23. b3 {[%emt 0:00:34]} Bc8 {[%emt 0:01:36]} 24. Rxf8+ {[%emt 0:02:52]} Kxf8 {[%emt 0:04:42]} 25. Rf1+ {[%emt 0:04:18]} Kg7 {[%emt 0:00:12]} 26. Qf4 {[%emt 0:01:38]} Rh8 {[%emt 0:07:11]} 27. Qg3 {[%emt 0:02:00]} Rh5 {[%emt 0:03:41]} 28. Rf4 {[%emt 0:03:39]} Bd7 {[%emt 0:00:43]} 29. Kf1 {[%emt 0:03:15]} a5 {[%emt 0:02:32]} 30. Qe3 {[%emt 0:06:22]} Rh4 {[%emt 0:02:15]} 31. Qg3 {[%emt 0:02:15]} Rh5 {[%emt 0:05:58]} 32. Qe3 {[%emt 0:00:44]} Qg5 {[%emt 0:01:34]} 33. Nf3 {[%emt 0:01:24]} Qg3 {[%emt 0:01:33]} 34. Re4 {[%emt 0:01:19]} Nxf3 {[%emt 0:07:10]} 35. exf3 {[%emt 0:00:48]} Rh2 {[%emt 0:00:50]} 36. Qf2 {[%emt 0:04:02]} Rxg2 {[%emt 0:05:52]} 37. Qxg3 {[%emt 0:00:02]} Rxg3 {[%emt 0:00:05]} 38. Kf2 {[%emt 0:02:09]} Bf5 {[%emt 0:01:23]} 39. Kxg3 {[%emt 0:02:28]} Bxe4 {[%emt 0:00:04]} 40. fxe4 {[%emt 0:00:01]} Kf6 {[%emt 0:00:08]} 41. Kf4 {[%emt 0:00:02]} g5+ {[%emt 0:02:13]} 42. Kg4 {[%emt 0:00:05]} a4 {[%emt 0:00:28]} 43. Kg3 {[%emt 0:01:27]} axb3 {[%emt 0:00:29]} 44. axb3 {[%emt 0:00:01]} Ke5 {[%emt 0:00:09]} 45. Kg4 {[%emt 0:00:03]} Kxe4 {[%emt 0:00:13]} 46. Kxg5 {[%emt 0:00:02]} b5 {[%emt 0:00:43]} 47. Kf6 {[%emt 0:00:08]} bxc4 {[%emt 0:00:03]} 48. bxc4 {[%emt 0:00:02]} Kd4 {[%emt 0:00:04]} 49. Ke6 {[%emt 0:00:04]} Kxc4 {[%emt 0:00:04]} 50. Kd7 {[%emt 0:00:02]} Kxd5 {[%emt 0:00:05]} 0-1

[Event "US Masters 2024"]
[Site "Charlotte"]
[Date "2024.11.28"]
[Round "1.2"]
[White "Liang, Awonder"]
[Black "Oberoi, Shelev"]
[Result "1-0"]
[ECO "A04"]
[WhiteElo "2687"]
[BlackElo "2232"]
[Annotator "TA"]
[PlyCount "65"]
[EventDate "2024.09.23"]
[EventType "swiss"]
[EventCountry "USA"]
[SourceTitle "playchess.com"]
[Source "ChessBase"]
[SourceQuality "1"]
[TimeControl "5400+30"]

{[%evp 20,65,10,-28,1,0,0,0,0,0,50,33,54,41,54,46,74,71,181,172,264,285,251,288,275,273,286,281,259,275,237,212,562,558,501,436,441,285,1231,1140,29991,2237,1745,1612,2906,2760,29989,29990]} 1. Nf3 {[%emt 0:05:47]} c5 {[%emt 0:00:34]} 2. g3 {[%emt 0:00:25]} Nc6 {[%emt 0:00:38]} 3. Bg2 {[%emt 0:02:27]} e5 {[%emt 0:00:23]} 4. e4 {[%emt 0:02:50]} g6 {[%emt 0:01:17]} 5. O-O {[%emt 0:00:29]} Bg7 {[%emt 0:00:35]} 6. d3 {[%emt 0:00:05]} Nge7 {[%emt 0:00:57]} 7. c3 {[%emt 0:00:03]} O-O {[%emt 0:01:57]} 8. a3 {[%emt 0:00:04]} d6 {[%emt 0:10:06]} 9. b4 {[%emt 0:01:18]} h6 {[%emt 0:01:10]} 10. Nbd2 {[%emt 0:01:29]} Be6 {[%emt 0:02:33]} 11. Bb2 {[%emt 0:00:14]} b6 {[%emt 0:03:23]} 12. Re1 {[%emt 0:00:52]} Qd7 {[%emt 0:02:27]} 13. Qe2 {[%emt 0:03:12]} Rad8 {[%emt 0:06:27] The position is equal.} 14. Rad1 {[%emt 0:01:04]} f5 {[%emt 0:04:19] [#]} (14... Rc8 $11) 15. d4 $1 $14 {[%emt 0:05:15]} fxe4 {[%emt 0:12:16]} 16. Nxe4 {[%emt 0:00:12] Threatens to win with dxe5.} Bb3 $1 {[%emt 0:06:26]} 17. Rc1 {[%emt 0:03:19][%cal Rb4c5]} (17. dxc5 Bxd1 18. Rxd1 d5 $11) 17... exd4 {[%emt 0:03:31]} 18. cxd4 {[%emt 0:00:11]} cxd4 {[%emt 0:01:43]} (18... Bd5 $16 {was necessary.}) 19. b5 $18 {[%emt 0:00:54]} Ne5 {[%emt 0:01:35]} (19... Na5 $142) 20. Nxd4 {[%emt 0:00:06]} Bd5 {[%emt 0:01:35]} 21. f4 {[%emt 0:01:31]} Bxe4 {[%emt 0:05:14]} 22. Bxe4 {[%emt 0:02:49]} (22. Qxe4 d5 23. Qe2 Nc4 $11) 22... d5 {[%emt 0:01:29]} 23. Bb1 {[%emt 0:00:06] This pair of bishops is nice.} Nc4 {[%emt 0:00:37]} 24. Qxe7 {[%emt 0:01:29]} Nxb2 {[%emt 0:02:12]} 25. Qb4 {[%emt 0:02:35]} Rxf4 $2 {[%emt 0:06:11]} (25... Nc4 26. Ne6 Rde8) 26. gxf4 {[%emt 0:02:25]} Qg4+ {[%emt 0:09:56]} 27. Kh1 {[%emt 0:00:13]} Bxd4 {[%emt 0:00:16]} 28. Qb3 {[%emt 0:07:24] Wards off Qf3+. And now Rc6 would win.} Bf2 $2 {[%emt 0:03:58] [#]} (28... Nc4 29. Qg3 Qxg3 30. hxg3 Be3) 29. Rc6 $1 {[%emt 0:01:44]} g5 {[%emt 0:07:05]} (29... Bxe1 30. Rxg6+) 30. Rg6+ {[%emt 0:01:15]} (30. Re8+ $142 Kf7 31. Bg6+ (31. Rxd8 $2 Qg1#) 31... Kg7 32. Qc3+ (32. Rxd8 $2 Qg1#) (32. Qxb2+ d4 33. Qxf2 Qd7 34. fxg5 Rxe8 35. gxh6+ Kg8 36. Bxe8 Qd5+ 37. Qg2+ Qxg2+ 38. Kxg2 Kh7) 32... d4 33. Re7+ (33. Qxb2 $2 Qg1#) 33... Kf8 34. Rf6+ (34. Rf7+ $2 Kg8 $19) 34... Kg8 35. Qb3+ (35. Qxb2 $2 Qg1#) 35... Nc4 36. Qxc4+ Rd5 37. Qxd5+ Kh8 38. Rh7#) 30... Kf7 {[%emt 0:00:21]} 31. Rf1 {[%emt 0:01:51]} Qe2 {[%emt 0:01:04]} 32. Qh3 {[%emt 0:00:50] Threatening mate with Qf5+.} Ke7 {[%emt 0:03:08] [#]} 33. Rxf2 $1 {[%emt 0:00:36][%mdl 512] Black got outplayed after the opening.   Weighted Error Value: White=0.19 (very precise) /Black=0.93.  Mistake:       	---       	Black=5      Inaccurate:     	White=1     	Black=2      OK:         	White=5     	Black=6      Best:        	White=3     	Black=1      Strong:       	---       	Black=1      Brilliant:      	White=1     	---} 1-0

[Event "US Masters 2024"]
[Site "Charlotte"]
[Date "2024.11.28"]
[Round "1.3"]
[White "Caglar, Sila"]
[Black "Oparin, Grigoriy"]
[Result "0-1"]
[ECO "B50"]
[WhiteElo "2228"]
[BlackElo "2653"]
[Annotator "TA"]
[PlyCount "68"]
[EventDate "2024.09.23"]
[EventType "swiss"]
[EventCountry "USA"]
[SourceTitle "playchess.com"]
[Source "ChessBase"]
[SourceQuality "1"]
[TimeControl "5400+30"]

{[%evp 11,68,4,0,11,0,-6,0,-12,0,-12,-20,-10,-25,-14,-20,-18,-7,-33,-7,-12,8,6,20,-27,-24,-35,-26,-39,-35,-29,-34,-24,-21,-77,-71,-109,-102,-104,-115,-141,-135,-127,-133,-231,-237,-229,-233,-245,-241,-277,-246,-246,-232,-245,-241,-241,-241,-578,-562]} 1. e4 {[%emt 0:03:04]} c5 {[%emt 0:00:03]} 2. Nf3 {[%emt 0:00:04]} Nc6 {[%emt 0:00:06]} 3. Nc3 {[%emt 0:00:04]} d6 {[%emt 0:00:41]} 4. g3 {[%emt 0:00:21]} g6 {[%emt 0:00:52]} 5. Bg2 {[%emt 0:00:10]} Bg7 {[%emt 0:00:06]} 6. O-O {[%emt 0:00:11]} Rb8 {[%emt 0:02:49]} 7. a4 {[%emt 0:02:27]} e6 {[%emt 0:06:34]} 8. d3 {[%emt 0:05:35]} Nge7 {[%emt 0:00:16]} 9. Be3 {[%emt 0:01:20] The position is equal.} Nd4 {[%emt 0:01:03]} 10. Rb1 {[%emt 0:01:24]} O-O {[%emt 0:03:25]} 11. Ne2 {[%emt 0:00:29][%cal Re2d4]} Nxf3+ {[%emt 0:09:29]} 12. Bxf3 {[%emt 0:00:27]} b6 {[%emt 0:00:03]} 13. c3 {[%emt 0:11:45]} Bb7 {[%emt 0:03:09]} 14. Bg2 {[%emt 0:13:31]} Qd7 {[%emt 0:07:55]} 15. d4 {[%emt 0:07:56]} Bc6 {[%emt 0:08:55]} 16. b3 {[%emt 0:17:58]} Qb7 {[%emt 0:00:17]} 17. Qd3 {[%emt 0:00:21]} (17. Qc2 $142) 17... d5 $11 {[%emt 0:05:30]} 18. e5 {[%emt 0:04:23] [#]} c4 $1 {[%emt 0:00:40]} 19. Qd1 {[%emt 0:07:09]} (19. bxc4 $2 {loses.} dxc4 20. Bxc6 cxd3 $19 (20... Qxc6 21. Qc2 $15)) (19. Qc2 cxb3) 19... cxb3 {[%emt 0:00:06]} 20. Qxb3 {[%emt 0:02:24]} Qa6 {[%emt 0:00:04]} 21. Rfe1 {[%emt 0:03:15]} Bxa4 {[%emt 0:01:21]} 22. Qa3 {[%emt 0:00:47]} (22. Qa2 $11) 22... Nf5 $17 {[%emt 0:00:13]} 23. Ra1 {[%emt 0:01:35]} Nxe3 {[%emt 0:01:55]} 24. fxe3 {[%emt 0:04:42]} b5 {[%emt 0:00:04]} 25. c4 {[%emt 0:06:07]} dxc4 {[%emt 0:00:07]} 26. Nc3 {[%emt 0:00:04]} Rfc8 {[%emt 0:01:53]} 27. Nxa4 {[%emt 0:00:16]} (27. h4 $17) 27... bxa4 $19 {[%emt 0:00:05]} 28. Qxa4 {[%emt 0:00:35]} Qxa4 {[%emt 0:00:05]} 29. Rxa4 {[%emt 0:00:02][%cal Oe1e2]} c3 {[%emt 0:00:34]} 30. Be4 {[%emt 0:05:00]} c2 {[%emt 0:00:42]} 31. Raa1 {[%emt 0:00:32]} Bh6 {[%emt 0:00:21]} 32. Rac1 {[%emt 0:01:48]} Rc3 {[%emt 0:00:24]} 33. Kf2 {[%emt 0:00:42] [#]} Rbb3 $1 {[%emt 0:00:16][%cal Rh6e3]} 34. Bxc2 $2 {[%emt 0:01:02]} (34. Rxc2 Bxe3+ (34... Rxe3 35. d5 $17) 35. Kg2 Bxd4 36. Rxc3 Rxc3 (36... Bxc3 $2 37. Re3 $19) 37. Re2) 34... Ra3 {[%emt 0:00:23] Weighted Error Value: White=0.37/Black=0.04 (flawless) .  Mistake:       	White=4     	---        Inaccurate:     	White=2     	Black=1      OK:         	White=7     	Black=18     Best:        	White=1     	Black=2} ({Less strong is} 34... Bxe3+ 35. Rxe3 Rxe3 36. Bxb3 Rxb3 37. h3 $17) 0-1

[Event "US Masters 2024"]
[Site "Charlotte"]
[Date "2024.11.28"]
[Round "1.4"]
[White "Tari, Aryan"]
[Black "Andersen, Gunnar"]
[Result "1/2-1/2"]
[ECO "B30"]
[WhiteElo "2628"]
[BlackElo "2227"]
[Annotator "TA"]
[PlyCount "71"]
[EventDate "2024.09.23"]
[EventType "swiss"]
[EventCountry "USA"]
[SourceTitle "playchess.com"]
[Source "ChessBase"]
[SourceQuality "1"]
[TimeControl "5400+30"]

{[%evp 10,71,14,8,22,29,58,29,62,47,32,50,76,33,23,-12,-8,-10,-7,-11,-6,-20,-14,-14,-14,-18,-10,-22,-11,-8,-8,-25,-14,-34,-26,-38,-12,-16,-21,-17,-6,-15,-16,-23,-21,-6,-14,-17,0,0,-7,-8,-10,-6,-4,-9,0,0,0,-19,-14,-143,-138,-64]} 1. e4 {[%emt 0:00:02]} c5 {[%emt 0:01:58]} 2. Nf3 {[%emt 0:00:34]} Nc6 {[%emt 0:00:16]} 3. Bb5 {[%emt 0:00:14]} e6 {[%emt 0:00:09]} 4. Bxc6 {[%emt 0:00:15]} bxc6 {[%emt 0:00:06]} 5. d3 {[%emt 0:00:07]} Qc7 {[%emt 0:00:23]} 6. O-O {[%emt 0:00:31]} e5 {[%emt 0:02:04]} 7. c3 {[%emt 0:00:26]} Nf6 {[%emt 0:02:01]} 8. d4 {[%emt 0:01:11]} cxd4 {[%emt 0:01:57] White has an edge.} 9. cxd4 {[%emt 0:00:06]} exd4 {[%emt 0:00:49]} 10. Qxd4 {[%emt 0:22:21]} Qb6 {[%emt 0:10:37]} 11. Qe5+ {[%emt 0:27:31]} Be7 {[%emt 0:00:40]} 12. Be3 {[%emt 0:00:06]} c5 {[%emt 0:06:25]} 13. Nbd2 {[%emt 0:04:54]} d6 {[%emt 0:02:44]} 14. Qc3 {[%emt 0:00:04]} O-O {[%emt 0:03:28]} 15. Bg5 {[%emt 0:02:23][%cal Be3g5,Bg5h4,Bh4g3,Bg3e5][%mdl 32]} Re8 {[%emt 0:10:36]} 16. Qc2 {[%emt 0:01:39]} Be6 {[%emt 0:04:43]} 17. Rfe1 {[%emt 0:02:49]} h6 {[%emt 0:02:10]} 18. Bh4 {[%emt 0:00:52]} a5 {[%emt 0:04:49]} 19. Nc4 {[%emt 0:02:42]} Qa6 {[%emt 0:01:57]} 20. Nfd2 {[%emt 0:10:09]} (20. Nxd6 $5 Qxd6 (20... Bxd6 21. e5 $11) 21. e5 $11) 20... a4 {[%emt 0:04:03]} 21. h3 {[%emt 0:00:45]} Rab8 {[%emt 0:03:59]} 22. Bg3 {[%emt 0:03:05]} Rb4 {[%emt 0:03:02][%cal Re6c4]} 23. Rac1 {[%emt 0:00:18]} Rd8 {[%emt 0:03:26]} 24. e5 {[%emt 0:06:37]} dxe5 {[%emt 0:00:42]} 25. Bxe5 {[%emt 0:00:02]} Nd7 {[%emt 0:01:34] aiming for ...Nxe5.} 26. Bc7 {[%emt 0:01:09]} Re8 {[%emt 0:04:19]} 27. a3 {[%emt 0:00:14]} Rb7 {[%emt 0:01:27]} 28. Bg3 {[%emt 0:00:22]} Rd8 {[%emt 0:03:12]} 29. Ne4 {[%emt 0:02:12]} Bxc4 {[%emt 0:03:50]} 30. Qxc4 {[%emt 0:00:02]} Qxc4 {[%emt 0:00:07]} 31. Rxc4 {[%emt 0:00:03]} Rxb2 {[%emt 0:00:26]} 32. Rxa4 {[%emt 0:00:07]} Nb6 {[%emt 0:01:07]} 33. Ra6 {[%emt 0:02:16]} Nd5 {[%emt 0:03:00] Inhibits Bc7.} 34. Ra7 {[%emt 0:02:58]} c4 {[%emt 0:03:50]} 35. Rd1 {[%emt 0:00:01] [#]} (35. Be5 $11 {remains equal.} Rc2 36. g4) 35... Kf8 $1 $17 {[%emt 0:01:34]} 36. Ra5 {[%emt 0:04:06] Weighted Error Value: White=0.15 (very precise) /Black=0.06 (flawless) .  Mistake:       	White=2     	---        Inaccurate:     	White=3     	Black=4      OK:         	White=9     	Black=12     Best:        	---       	Black=1      Strong:       	---       	Black=1} (36. Be5 $17 Re2 37. f3) 1/2-1/2

[Event "US Masters 2024"]
[Site "Charlotte"]
[Date "2024.11.28"]
[Round "1.5"]
[White "Wu, Derek"]
[Black "Durarbayli, Vasif"]
[Result "1/2-1/2"]
[ECO "B96"]
[WhiteElo "2225"]
[BlackElo "2626"]
[Annotator "TA"]
[PlyCount "194"]
[EventDate "2024.09.23"]
[EventType "swiss"]
[EventCountry "USA"]
[SourceTitle "playchess.com"]
[Source "ChessBase"]
[SourceQuality "1"]
[TimeControl "5400+30"]

{[%evp 70,194,-254,-254,-254,-276,-224,-256,-251,-270,-270,-267,-97,-98,-96,-91,-52,-54,-52,-52,-52,-55,-52,-67,-37,-37,-8,-8,-8,-8,-8,-8,-8,-8,-8,-8,-8,-8,-8,-8,-8,-8,-8,-8,-8,-8,-8,-8,-8,-8,-8,-8,-8,-8,-8,-8,-8,-10,-10,-10,-8,-8,-8,-16,-16,-16,-10,-10,-8,-8,-8,-8,-8,-8,-8,-8,-8,-16,-8,-16,0,-8,-8,-8,0,0,0,-8,-8,-8,0,0,0,0,0,0,0,0,0,0,0,0,0,0,0,0,0,0,0,0,0,0,0,0,0,0,0,0,0,0,0,0,0,0,0,0,0]} 1. e4 {[%emt 0:00:30]} c5 {[%emt 0:00:09]} 2. Nf3 {[%emt 0:00:19]} d6 {[%emt 0:00:05]} 3. d4 {[%emt 0:00:10]} cxd4 {[%emt 0:00:04]} 4. Nxd4 {[%emt 0:00:06]} Nf6 {[%emt 0:00:03]} 5. Nc3 {[%emt 0:00:10]} a6 {[%emt 0:00:04]} 6. Bg5 {[%emt 0:00:30]} e6 {[%emt 0:01:06]} 7. f4 {[%emt 0:00:22]} h6 {[%emt 0:00:38]} 8. Bh4 {[%emt 0:00:16]} Nbd7 {[%emt 0:00:05] B96: Sicilian Najdorf: 6 Bg5 e6 7 f4, lines other than 7...Qb6 and 7...Be7.} 9. Qe2 {[%emt 0:03:36]} e5 $1 {[%emt 0:00:40] The main line 9...e5 scores better than 9...Qc7.} 10. fxe5 {[%emt 0:00:36]} dxe5 {[%emt 0:00:05]} 11. Nf5 {[%emt 0:01:29]} Nb6 {[%emt 0:00:29]} 12. Qf3 {[%emt 0:04:12]} Be6 {[%emt 0:02:50]} 13. Rd1 {[%emt 0:03:57]} Nbd7 {[%emt 0:02:50]} 14. Bf2 $146 {[%emt 0:15:40]} ({Predecessor:} 14. Be2 Qb6 15. Rb1 Rc8 16. Bf2 Rxc3 17. Bxb6 Rxf3 18. gxf3 Nxb6 19. Ne3 Bc5 20. Ng2 Bxa2 {0-1 Vandan,A (2167)-Golubovskis,M (2192) Budapest Vezerkepzo Haag IM-B 11 2024 (3)}) 14... g6 {[%emt 0:13:36]} 15. Ne3 {[%emt 0:01:51]} h5 {[%emt 0:06:53]} 16. Be2 {[%emt 0:05:24]} Ng4 {[%emt 0:02:05]} 17. Nxg4 {[%emt 0:01:57]} hxg4 {[%emt 0:00:06]} 18. Qd3 {[%emt 0:01:27]} Rc8 {[%emt 0:04:04]} 19. O-O {[%emt 0:03:12]} Bc5 {[%emt 0:01:31]} 20. Bxc5 {[%emt 0:05:26]} Rxc5 {[%emt 0:00:27]} 21. b4 {[%emt 0:10:27]} Rc8 {[%emt 0:03:52]} 22. Nd5 {[%emt 0:02:11]} Qh4 {[%emt 0:00:20]} 23. Qg3 {[%emt 0:00:23]} Qxg3 {[%emt 0:04:12]} 24. hxg3 {[%emt 0:00:02]} Rxc2 {[%emt 0:00:24]} 25. Rc1 {[%emt 0:00:56]} Rxc1 {[%emt 0:00:06]} 26. Rxc1 {[%emt 0:00:02]} Kd8 {[%emt 0:00:12]} 27. Nc7 {[%emt 0:04:52]} Bxa2 {[%emt 0:01:42]} 28. Bxg4 {[%emt 0:00:54]} Nf6 {[%emt 0:00:08]} 29. Bh3 {[%emt 0:02:23]} Ke7 {[%emt 0:04:43]} 30. b5 {[%emt 0:01:24]} axb5 {[%emt 0:01:03]} 31. Nxb5 {[%emt 0:00:07]} Nxe4 {[%emt 0:00:27]} 32. Rc7+ {[%emt 0:01:38]} Kf6 {[%emt 0:00:38]} 33. Rxb7 {[%emt 0:00:50]} Nxg3 {[%emt 0:00:27]} 34. Nc3 {[%emt 0:00:56]} Be6 {[%emt 0:02:54]} 35. Rb6 {[%emt 0:01:12]} Nf5 {[%emt 0:49:02]} 36. Ne4+ {[%emt 0:02:00]} Kg7 {[%emt 0:00:00]} 37. Ng5 {[%emt 0:02:20]} Bc8 {[%emt 0:00:00]} 38. Rc6 {[%emt 0:01:04]} Ne7 {[%emt 0:00:00]} 39. Rc7 {[%emt 0:01:14]} Bxh3 {[%emt 0:00:00]} 40. Rxe7 {[%emt 0:00:40] [#]} Kf6 $2 {[%emt 0:00:00]} (40... Be6 $1 $19 {and Black stays clearly on top. ...Kf6 would now be deadly.} 41. Ra7 Bd5) 41. Rxe5 $17 {[%emt 0:00:46]} Bf5 {[%emt 0:00:00]} ({Don't play} 41... Kxe5 $6 42. Nxf7+ Kf6 43. Nxh8 $11) 42. Nf3 {[%emt 0:00:05]} g5 {[%emt 0:00:00]} 43. Ra5 {[%emt 0:01:14]} g4 {[%emt 0:00:00]} 44. Ra6+ {[%emt 0:02:05]} Be6 {[%emt 0:00:00]} 45. Nd4 {[%emt 0:00:45]} Rd8 {[%emt 0:00:00]} 46. Ra4 {[%emt 0:02:13]} g3 {[%emt 0:00:00]} 47. Kf1 {[%emt 0:00:17]} Bg4 {[%emt 0:00:00]} 48. Nf3 $1 {[%emt 0:02:00]} Bc8 {[%emt 0:00:00]} 49. Rf4+ {[%emt 0:02:31]} Kg7 {[%emt 0:00:00]} 50. Ke2 {[%emt 0:01:34]} Re8+ {[%emt 0:00:00]} 51. Kd2 {[%emt 0:00:29]} Re7 {[%emt 0:00:00]} 52. Nd4 {[%emt 0:01:05]} Ra7 {[%emt 0:00:00]} 53. Rf3 {[%emt 0:02:35]} Ra2+ {[%emt 0:00:00]} 54. Nc2 {[%emt 0:01:32]} Bb7 {[%emt 0:00:00]} 55. Rxg3+ {[%emt 0:00:13]} Kf6 {[%emt 0:00:00]} 56. Ra3 $1 {[%emt 0:01:12]} Rb2 {[%emt 0:00:00]} 57. Kc3 {[%emt 0:00:35]} Rb5 {[%emt 0:00:00]} 58. Ne3 {[%emt 0:00:56]} Rg5 {[%emt 0:00:00]} 59. g4 {[%emt 0:00:38]} Re5 {[%emt 0:00:00]} 60. Kd2 {[%emt 0:00:18]} Kg5 {[%emt 0:00:00]} 61. Ke2 {[%emt 0:01:02]} Rb5 {[%emt 0:00:00]} 62. Kf2 {[%emt 0:00:25]} Kh4 {[%emt 0:00:00]} 63. Ra2 {[%emt 0:00:14]} Rb4 {[%emt 0:00:00]} 64. Rc2 {[%emt 0:00:58]} Rf4+ {[%emt 0:00:00]} 65. Kg1 {[%emt 0:01:30]} Rf3 {[%emt 0:00:00]} 66. Rc7 {[%emt 0:01:45]} Ba6 {[%emt 0:00:00]} 67. Rc3 {[%emt 0:08:18]} Rf6 {[%emt 0:16:00]} 68. Ra3 {[%emt 0:00:00]} Bb7 {[%emt 0:00:00]} 69. Ra4 {[%emt 0:00:00]} Rb6 {[%emt 0:00:00]} 70. Rf4 {[%emt 0:00:00]} f6 {[%emt 0:00:00]} 71. Kh2 {[%emt 0:00:00]} Rb2+ {[%emt 0:00:00]} 72. Kg1 {[%emt 0:00:00]} Re2 {[%emt 0:00:00]} 73. Rb4 {[%emt 0:00:00]} Ba8 {[%emt 0:00:00]} 74. Ra4 {[%emt 0:00:00]} Bb7 {[%emt 0:00:00]} 75. Nf5+ {[%emt 0:00:57]} Kh3 {[%emt 0:00:00]} 76. Kf1 {[%emt 0:00:37]} Rb2 {[%emt 0:00:00]} 77. Rf4 {[%emt 0:00:39]} Bc8 {[%emt 0:00:00]} 78. Ke1 {[%emt 0:00:37]} Rb6 {[%emt 0:00:00]} 79. Kf2 {[%emt 0:00:33]} Bd7 {[%emt 0:00:00]} 80. Rd4 {[%emt 0:00:53]} Rb2+ {[%emt 0:00:00]} 81. Ke3 {[%emt 0:00:21]} Bc8 {[%emt 0:00:00]} 82. Rd6 {[%emt 0:01:25]} Kxg4 {[%emt 0:00:00]} 83. Ne7 {[%emt 0:00:08]} Bb7 {[%emt 0:00:00]} 84. Rxf6 {[%emt 0:00:06]} Rb1 {[%emt 0:00:00]} 85. Rf2 {[%emt 0:00:41]} Bf3 {[%emt 0:00:00]} 86. Ng6 {[%emt 0:00:38]} Re1+ {[%emt 0:00:00]} 87. Kd2 {[%emt 0:00:45]} Re6 {[%emt 0:00:00]} 88. Nf8 {[%emt 0:00:37]} Re8 {[%emt 0:00:00]} 89. Ng6 {[%emt 0:01:07]} Kg3 {[%emt 0:00:00]} 90. Rf1 {[%emt 0:00:01]} Re6 {[%emt 0:00:00]} 91. Nh4 {[%emt 0:00:33]} Be4 {[%emt 0:00:00]} 92. Nf5+ {[%emt 0:00:07]} Kh3 {[%emt 0:00:00]} 93. Nd4 {[%emt 0:00:12]} Ra6 {[%emt 0:00:00]} 94. Ke3 {[%emt 0:00:09]} Bg2 {[%emt 0:00:00]} 95. Rf8 {[%emt 0:00:10]} Bd5 {[%emt 0:00:00]} 96. Rd8 {[%emt 0:00:15]} Bc4 {[%emt 0:00:00]} 97. Rc8 {[%emt 0:00:13]} Bd5 {[%emt 0:00:00]} 1/2-1/2